fUSD/lending_fUSD_20260408
["ID","MTS","AMOUNT","RATE_DAILY","PERIOD"]
[420073611,1775650596979,152.47,8.664e-05,2]
[420073612,1775650597179,152.47,9.076e-05,2]
[420073615,1775650746205,-2000.0,9.41e-05,2]
[420073616,1775650746231,-152.47,9.489e-05,2]
[420073617,1775650746255,-375.3532,9.9e-05,2]
[420073618,1775650746281,-152.47,9.901e-05,2]
[420073619,1775650746308,-152.47,0.00010314,2]
[420073620,1775650746333,-2000.0,0.00010587,2]
[420073621,1775650746360,-1200.0,0.00010599,2]
[420073622,1775650746386,-150.0,0.00010599,2]
[420073623,1775650746422,-250.0,0.000106,2]
[420073624,1775650746447,-4367.2368,0.000106,2]
[420073626,1775651431545,-1287.60075108,0.000105,2]
[420073627,1775651431557,-558.74,0.000105,2]
[420073628,1775651431731,-19830.00000004,0.000105,2]
[420073629,1775651431743,-544.144535,0.000105,2]
[420073632,1775651432689,-3618.11972123,0.000105,2]
[420073634,1775651437665,-248.33725774,0.00010499,2]
[420073635,1775651437676,-197.96525417,0.00010499,2]
[420073636,1775651437686,-474.23093513,0.00010499,2]
[420073637,1775651437699,-25.76906487,0.00010499,2]
[420073638,1775651437709,-4204.90640827,0.000105,2]
[420073639,1775651438288,-500.0,0.00010499,2]
[420073640,1775651438298,-231.35677641,0.00010499,2]
[420073641,1775651438309,-604.60904616,0.00010499,2]
[420073642,1775651438319,-500.0,0.00010499,2]
[420073643,1775651438329,-4167.83136537,0.000105,2]
[420073644,1775651438341,-1086.4395005,0.000105,2]
[420073645,1775651438352,-5887.1,0.000105,2]
[420073647,1775651438367,-2458815.11771851,0.000105,2]
[420073649,1775651438377,-302.0,0.000105,2]
[420073651,1775651438386,-1000.0,0.00010599,2]
[420073652,1775651438396,-28674.5437,0.000106,2]
[420073653,1775651438405,-1000.0,0.000106,2]
[420073654,1775651438415,-150.0,0.000107,2]
[420073655,1775651438425,-9555.0,0.00010721,2]
[420073656,1775651438434,-350.49,0.00010721,2]
[420073657,1775651438444,-152.47,0.00010726,2]
[420073658,1775651438454,-1500.0,0.00010803,2]
[420073659,1775651438464,-193.44169825,0.00010959,2]
[420073660,1775651438473,-152.47,0.00011139,2]
[420073661,1775651438483,-2550.0,0.00011139,7]
[420073662,1775651438493,-500.0,0.00011273,2]
[420073663,1775651438502,-500.0,0.00011273,2]
[420073664,1775651438512,-500.0,0.00011273,2]
[420073665,1775651438521,-1500000.0,0.00011286,2]
[420073666,1775651438531,-2556.92088652,0.00011327,2]
[420073667,1775651438541,-500.0,0.00011373,2]
[420073668,1775651438551,-602.8020892,0.00011385,2]
[420073669,1775651438560,-9999.99,0.00011386,2]
[420073670,1775651438571,-88679.84,0.00011386,2]
[420073671,1775651438580,-9999.99,0.00011386,2]
[420073672,1775651438589,-150.99,0.00011386,2]
[420073673,1775651438599,-9999.99,0.00011386,2]
[420073674,1775651438609,-999.99,0.00011386,2]
[420073675,1775651438619,-9227.28,0.00011386,2]
[420073676,1775651438630,-299.99,0.00011386,2]
[420073677,1775651438641,-150.99,0.00011386,2]
[420073678,1775651438651,-321.37931728,0.00011386,2]
[420073679,1775651438662,-2108.41514313,0.00011452,2]
[420073680,1775651438673,-966.37496953,0.00011452,2]
[420073681,1775651438683,-760.0,0.00011461,2]
[420073682,1775651438693,-5668.97,0.00011507,2]
[420073683,1775651438703,-5707.27,0.00011507,2]
[420073684,1775651438713,-195.0,0.00011523,2]
[420073685,1775651438723,-195.0,0.00011523,2]
[420073686,1775651438733,-195.0,0.00011523,2]
[420073687,1775651438742,-195.0,0.00011523,2]
[420073688,1775651438752,-296.60925925,0.00011523,2]
[420073689,1775651438762,-250.0,0.00011523,2]
[420073690,1775651438772,-600.0,0.00011523,2]
[420073691,1775651438781,-600.0,0.00011523,2]
[420073692,1775651438790,-600.0,0.00011523,2]
[420073693,1775651438800,-151.0,0.00011533,2]
[420073694,1775651438809,-151.0,0.00011533,2]
[420073695,1775651438819,-151.0,0.00011533,2]
[420073696,1775651438828,-151.0,0.00011533,2]
[420073697,1775651438837,-151.0,0.00011533,2]
[420073698,1775651438847,-151.0,0.00011533,2]
[420073699,1775651438856,-151.0,0.00011533,2]
[420073700,1775651438866,-151.0,0.00011533,2]
[420073701,1775651438876,-151.0,0.00011533,2]
[420073702,1775651438886,-151.0,0.00011533,2]
[420073703,1775651438896,-151.0,0.00011533,2]
[420073704,1775651438906,-151.0,0.00011533,2]
[420073705,1775651438916,-500.0,0.00011533,2]
[420073706,1775651438926,-151.0,0.00011533,2]
[420073707,1775651438936,-500.0,0.00011533,2]
[420073708,1775651438945,-151.0,0.00011533,2]
[420073709,1775651438955,-500.0,0.00011533,2]
[420073710,1775651438965,-151.0,0.00011533,2]
[420073711,1775651438975,-500.0,0.00011533,2]
[420073712,1775651438985,-500.0,0.00011533,2]
[420073713,1775651438995,-500.0,0.00011533,2]
[420073714,1775651439004,-500.0,0.00011533,2]
[420073715,1775651439014,-500.0,0.00011533,2]
[420073716,1775651439024,-151.0,0.00011533,2]
[420073717,1775651439034,-538.11905532,0.00011533,2]
[420073718,1775651439043,-151.0,0.00011533,2]
[420073719,1775651439053,-335.37577091,0.00011533,2]
[420073720,1775651439063,-151.0,0.00011533,2]
[420073721,1775651439074,-151.0,0.00011533,2]
[420073722,1775651439084,-151.0,0.00011533,2]
[420073723,1775651439094,-151.0,0.00011533,2]
[420073724,1775651439104,-151.0,0.00011533,2]
[420073725,1775651439113,-151.0,0.00011533,2]
[420073726,1775651439123,-151.0,0.00011533,2]
[420073727,1775651439133,-151.0,0.00011533,2]
[420073728,1775651439143,-151.0,0.00011533,2]
[420073729,1775651439153,-155.45941456,0.00011533,2]
[420073730,1775651439163,-197514.35,0.0001154,2]
[420073731,1775651439172,-152.47,0.00011551,2]
[420073732,1775651439183,-600.0,0.00011652,2]
[420073733,1775651439193,-250.0,0.00011652,2]
[420073734,1775651439203,-4958.18890865,0.00011652,2]
[420073735,1775651439213,-154.20387248,0.00011652,2]
[420073736,1775651439224,-600.0,0.00011652,2]
[420073737,1775651439234,-300.0,0.00011652,2]
[420073738,1775651439244,-300.0,0.00011652,2]
[420073739,1775651439254,-300.0,0.00011652,2]
[420073740,1775651439263,-300.0,0.00011652,2]
[420073741,1775651439273,-265.76204215,0.00011652,2]
[420073742,1775651439283,-2000.0,0.00011763,2]
[420073743,1775651439293,-160.46055602,0.000118,3]
[420073744,1775651439303,-166.66,0.0001191,2]
[420073745,1775651439313,-2108.41514306,0.00011946,2]
[420073746,1775651439323,-152.47,0.00011964,2]
[420073747,1775651439333,-172.4903,0.00012,2]
[420073748,1775651439343,-966.37496951,0.00012087,2]
[420073749,1775651439354,-166.66,0.00012303,2]
[420073750,1775651439365,-152.47,0.00012377,2]
[420073751,1775651439376,-2108.41514306,0.0001244,2]
[420073752,1775651439387,-166.66,0.00012696,2]
[420073753,1775651439397,-966.37496951,0.00012723,2]
[420073754,1775651439408,-2000.0,0.00012894,2]
[420073755,1775651439419,-5000.0,0.00012904,2]
[420073756,1775651439429,-2500.0,0.00012904,2]
[420073757,1775651439439,-2108.41514306,0.00012935,2]
[420073758,1775651439449,-2000.0,0.00012939,2]
[420073759,1775651439459,-3320.70533709,0.00012967,2]
[420073760,1775651439469,-405.73177424,0.00012967,2]
[420073761,1775651439479,-246.66472948,0.00012967,2]
[420073762,1775651439488,-157.0,0.00013,2]
[420073763,1775651439498,-158.78422163,0.00013,2]
[420073764,1775651439509,-151.0,0.00013001,2]
[420073765,1775651439520,-211228.95636602,0.00013067,2]
[420073766,1775651439530,-166.66,0.00013089,2]
[420073767,1775651439541,-505.0,0.000131,2]
[420073768,1775651439551,-966.37496951,0.00013358,2]
[420073769,1775651439561,-198.3528,0.000134,2]
[420073770,1775651439571,-3240.0,0.00013425,2]
[420073771,1775651439581,-500.0,0.00013425,2]
[420073772,1775651439591,-500.0,0.00013425,2]
[420073773,1775651439601,-500.0,0.00013425,2]
[420073774,1775651439611,-500.0,0.00013425,2]
[420073775,1775651439620,-500.0,0.00013425,2]
[420073776,1775651439631,-226.83643244,0.00013425,2]
[420073777,1775651439640,-150.0,0.00013425,2]
[420073778,1775651439651,-500.0,0.00013425,2]
[420073779,1775651439661,-500.0,0.00013425,2]
[420073780,1775651439671,-500.0,0.00013425,2]
[420073781,1775651439681,-500.0,0.00013425,2]
[420073782,1775651439691,-500.0,0.00013425,2]
[420073783,1775651439701,-381.23774932,0.00013425,2]
[420073784,1775651439710,-2108.41514306,0.00013429,2]
[420073785,1775651439720,-166.66,0.00013482,2]
[420073786,1775651439730,-5106.44970927,0.00013578,2]
[420073788,1775651439740,-158.78422163,0.0001358,2]
[420073789,1775651439750,-2321.08,0.00013699,2]
[420073790,1775651439760,-529.51,0.00013699,2]
[420073791,1775651439770,-500.0,0.00013699,2]
[420073792,1775651439780,-500.0,0.00013699,2]
[420073793,1775651439791,-500.0,0.00013699,2]
[420073794,1775651439801,-500.0,0.00013699,2]
[420073795,1775651439812,-501.53334874,0.00013699,2]
[420073796,1775651439821,-233.84757239,0.00013699,2]
[420073797,1775651439832,-500.0,0.00013699,2]
[420073798,1775651439841,-500.0,0.00013699,2]
[420073799,1775651439851,-500.0,0.00013699,2]
[420073800,1775651439861,-500.0,0.00013699,2]
[420073801,1775651439872,-500.0,0.00013699,2]
[420073802,1775651439881,-500.0,0.00013699,2]
[420073803,1775651439891,-500.0,0.00013699,2]
[420073804,1775651439901,-154.23,0.00013699,2]
[420073805,1775651439911,-500.0,0.00013836,2]
[420073806,1775651439921,-166.66,0.00013875,2]
[420073807,1775651439931,-157.06,0.000139,2]
[420073808,1775651439941,-2108.41514306,0.00013923,2]
[420073809,1775651439950,-966.37496951,0.00013994,2]
[420073810,1775651439959,-2000.0,0.00014116,2]
[420073811,1775651439968,-246.58617393,0.00014145,2]
[420073812,1775651439978,-158.78422163,0.0001416,2]
[420073813,1775651439988,-505.0,0.00014197,2]
[420073814,1775651439997,-242.44337113,0.00014208,2]
[420073815,1775651440007,-155.32006584,0.00014241,2]
[420073816,1775651440016,-1000.0,0.00014247,2]
[420073817,1775651440026,-1000.0,0.00014247,2]
[420073818,1775651440036,-1000.0,0.00014247,2]
[420073819,1775651440046,-501.12672973,0.00014247,2]
[420073820,1775651440055,-1000.0,0.00014247,2]
[420073821,1775651440065,-1000.0,0.00014247,2]
[420073823,1775651440074,-1000.0,0.00014247,2]
[420073825,1775651440084,-786.49380402,0.00014247,2]
[420073827,1775651440094,-1000.0,0.00014247,2]
[420073830,1775651440104,-529.51,0.00014384,2]
[420073831,1775651440114,-2108.41514306,0.00014417,2]
[420073832,1775651440124,-3320.70533708,0.00014434,2]
[420073833,1775651440133,-405.73177422,0.00014434,2]
[420073834,1775651440143,-246.66472947,0.00014434,2]
[420073835,1775651440153,-160.0,0.00014537,2]
[420073836,1775651440163,-966.37496951,0.00014629,2]
[420073837,1775651440174,-228.093,0.000147,2]
[420073838,1775651440183,-158.78422163,0.0001474,2]
[420073839,1775651440193,-755.90284256,0.00014795,2]
[420073840,1775651440202,-1315.21682164,0.00014795,2]
[420073841,1775651440211,-1018.40309967,0.00014795,2]
[420073842,1775651440221,-1500.0,0.00014795,2]
[420073843,1775651440232,-1500.0,0.00014795,2]
[420073844,1775651440242,-1500.0,0.00014795,2]
[420073845,1775651440252,-1500.0,0.00014795,2]
[420073846,1775651440262,-159.0,0.000149,2]
[420073847,1775651440273,-159.0,0.000149,2]
[420073848,1775651440283,-2108.41514306,0.00014912,2]
[420073849,1775651440295,-167.03,0.00015,2]
[420073850,1775651440305,-4190.0,0.00015,2]
[420073851,1775651440315,-160.0,0.00015,2]
[420073852,1775651440326,-529.51,0.00015068,2]
[420073853,1775651440335,-840.38,0.00015068,2]
[420073854,1775651440344,-3561.69,0.000152,2]
[420073855,1775651440354,-433.981952,0.0001521,7]
[420073856,1775651440365,-966.37496951,0.00015265,2]
[420073857,1775651440375,-505.0,0.00015293,3]
[420073858,1775651440385,-159.0,0.000153,2]
[420073859,1775651440396,-158.78422163,0.0001532,2]
[420073860,1775651440406,-2000.0,0.00015342,2]
[420073861,1775651440417,-2000.0,0.00015342,2]
[420073862,1775651440428,-272.16418036,0.00015342,2]
[420073863,1775651440438,-2000.0,0.00015342,2]
[420073864,1775651440448,-2108.41514306,0.00015406,2]
[420073865,1775651440457,-150.0,0.00015444,2]
[420073866,1775651440467,-8046.99,0.00015471,2]
[420073867,1775651440476,-364.53,0.00015471,2]
[420073868,1775651440486,-873.14,0.00015471,2]
[420073869,1775651440496,-25000.0,0.0001552,3]
[420073870,1775651440506,-3561.69,0.0001565,2]
[420073871,1775651440517,-529.51,0.00015753,2]
[420073872,1775651440527,-216.0,0.00015785,2]
[420073873,1775651440537,-150.0,0.00015832,2]
[420073874,1775651440546,-2321.08,0.00015862,2]
[420073875,1775651440557,-500.0,0.0001589,2]
[420073876,1775651440566,-500.0,0.0001589,2]
[420073877,1775651440577,-500.0,0.0001589,2]
[420073878,1775651440587,-194.91667222,0.0001589,2]
[420073879,1775651440597,-2534.58561509,0.0001589,2]
[420073880,1775651440607,-1849.56796848,0.0001589,2]
[420073881,1775651440616,-2500.0,0.0001589,2]
[420073882,1775651440626,-158.78422163,0.000159,2]
[420073883,1775651440637,-159.0,0.000159,2]
[420073884,1775651440647,-2108.41514306,0.000159,2]
[420073885,1775651440657,-184.01842302,0.000159,2]
[420073886,1775651440667,-966.37496951,0.000159,2]
[420073887,1775651440678,-3320.70533708,0.000159,2]
[420073888,1775651440688,-405.73177422,0.000159,2]
[420073889,1775651440698,-2000.0,0.000159,2]
[420073890,1775651440708,-197.264523,0.0001597,7]
[420073891,1775651440718,-500.0,0.00015973,2]
[420073892,1775651440727,-500.0,0.00015973,2]
[420073893,1775651440737,-176.66503354,0.00015973,2]
[420073894,1775651440746,-500.0,0.00015973,2]
[420073895,1775651440756,-308.60154884,0.00015973,2]
[420073896,1775651440766,-500.27274026,0.00015973,2]
[420073897,1775651440776,-500.0,0.00015973,2]
[420073898,1775651440785,-2175.0173039,0.00015973,2]
[420073899,1775651440795,-80623.0889727,0.00015985,2]
[420073900,1775651440804,-21795.8996123,0.00015985,2]
[420073901,1775651440814,-151.0,0.00015997,2]
[420073902,1775651440824,-151.0,0.00015997,2]
[420073903,1775651440834,-666.0,0.00015999,2]
[420073904,1775651440843,-1060380.16587929,0.00016,2]
[420073905,1775651440859,-750.97674804,0.00016,2]
[420073906,1775651441324,-194.18662976,0.0001049,2]
[420073907,1775651441334,-345.8255707,0.00016,2]
[420073908,1775651441791,-246.66472947,0.000159,2]
[420073909,1775651441800,-4309096.6889089,0.00016,2]
[420073910,1775651441899,-5645.34841247,0.00016,2]
[420073911,1775651441912,-1393.93585989,0.00016,2]
[420073912,1775651441924,-2153.13391365,0.00016,2]
[420073913,1775651441935,-440.45035725,0.00016,2]
[420073914,1775651441947,-1293.9996839,0.00016,2]
[420073926,1775651445823,-593.10661799,0.00010499,2]
[420073927,1775651445833,-500.0,0.00010499,2]
[420073928,1775651445843,-500.0,0.00010499,2]
[420073929,1775651445854,-500.0,0.00010499,2]
[420073930,1775651445864,-313.53606452,0.00010499,2]
[420073931,1775651445874,-500.0,0.00010499,2]
[420073932,1775651445885,-343.45431694,0.00010499,2]
[420073933,1775651445895,-18025.42657883,0.00016,2]
[420073934,1775651445907,-1885.3913665,0.00016,2]
[420073936,1775651446181,-2073.34,0.00016,2]
[420073943,1775651446299,-754.53124233,0.00016,2]
[420073946,1775652455442,150.05,7.981e-05,2]
[420073949,1775652632177,-2426.32,9.952e-05,2]
[420073951,1775652632187,-2361.38,0.00010179,2]
[420073953,1775652632198,-250.0,0.00010218,2]
[420073954,1775652632208,-300.0,0.00010257,2]
[420073956,1775652632218,-1200.0,0.00010257,2]
[420073957,1775652632229,-12140.02,0.00010258,2]
[420073958,1775652632239,-250.0,0.00010284,2]
[420073959,1775652632249,-1600.0,0.00010327,2]
[420073960,1775652632258,-500.0,0.00010373,2]
[420073961,1775652632268,-500.0,0.00010373,2]
[420073962,1775652632278,-500.0,0.00010373,2]
[420073963,1775652632288,-308.57923412,0.00010373,2]
[420073964,1775652632298,-194.18662975,0.00010387,2]
[420073965,1775652632308,-500.0,0.00010396,2]
[420073966,1775652632319,-173.83608042,0.00010396,2]
[420073967,1775652632328,-500.0,0.00010396,2]
[420073968,1775652632349,-500.0,0.00010396,2]
[420073969,1775652632361,-361.94974349,0.00010396,2]
[420073970,1775652632371,-273.22633231,0.00010396,2]
[420073971,1775652632381,-500.0,0.00010396,2]
[420073972,1775652632391,-500.0,0.00010396,2]
[420073973,1775652632401,-308.48519392,0.00010396,2]
[420073974,1775652632412,-289.24207936,0.00010396,2]
[420073975,1775652632422,-500.0,0.00010396,2]
[420073976,1775652632432,-500.0,0.00010396,2]
[420073977,1775652632443,-319.16512334,0.00010396,2]
[420073978,1775652632453,-500.0,0.00010396,2]
[420073979,1775652632463,-500.0,0.00010396,2]
[420073980,1775652632473,-500.0,0.00010396,2]
[420073981,1775652632483,-500.0,0.00010396,2]
[420073982,1775652632493,-258.49226963,0.00010396,2]
[420073983,1775652632504,-500.0,0.00010396,2]
[420073984,1775652632514,-500.0,0.00010396,2]
[420073985,1775652632524,-500.0,0.00010396,2]
[420073986,1775652632534,-500.0,0.00010396,2]
[420073987,1775652632544,-500.0,0.00010396,2]
[420073988,1775652632554,-500.0,0.00010396,2]
[420073989,1775652632563,-500.0,0.00010396,2]
[420073990,1775652632573,-500.0,0.00010396,2]
[420073991,1775652632583,-500.0,0.00010396,2]
[420073992,1775652632593,-500.0,0.00010396,2]
[420073993,1775652632602,-500.0,0.00010396,2]
[420073994,1775652632613,-500.0,0.00010396,2]
[420073995,1775652632623,-500.0,0.00010396,2]
[420073996,1775652632633,-500.0,0.00010396,2]
[420073997,1775652632644,-500.0,0.00010396,2]
[420073998,1775652632654,-500.0,0.00010396,2]
[420073999,1775652632664,-500.0,0.00010396,2]
[420074000,1775652632674,-500.0,0.00010396,2]
[420074001,1775652632684,-500.0,0.00010396,2]
[420074002,1775652632695,-280.44199532,0.00010396,2]
[420074003,1775652632705,-500.0,0.00010396,2]
[420074004,1775652632715,-500.0,0.00010396,2]
[420074005,1775652632726,-500.0,0.00010396,2]
[420074006,1775652632737,-500.0,0.00010396,2]
[420074007,1775652632748,-500.0,0.00010396,2]
[420074008,1775652632759,-500.0,0.00010396,2]
[420074009,1775652632769,-500.0,0.00010396,2]
[420074010,1775652632780,-500.0,0.00010396,2]
[420074011,1775652632790,-500.0,0.00010396,2]
[420074012,1775652632800,-500.0,0.00010396,2]
[420074013,1775652632810,-500.0,0.00010396,2]
[420074014,1775652632821,-500.0,0.00010396,2]
[420074015,1775652632832,-500.0,0.00010396,2]
[420074016,1775652632842,-500.0,0.00010396,2]
[420074017,1775652632863,-500.0,0.00010396,2]
[420074018,1775652632874,-500.0,0.00010396,2]
[420074019,1775652632886,-500.0,0.00010396,2]
[420074020,1775652632898,-500.0,0.00010396,2]
[420074021,1775652632908,-500.0,0.00010396,2]
[420074022,1775652632919,-500.0,0.00010396,2]
[420074023,1775652632929,-500.0,0.00010396,2]
[420074024,1775652632940,-500.0,0.00010396,2]
[420074025,1775652632950,-500.0,0.00010396,2]
[420074026,1775652632961,-500.0,0.00010396,2]
[420074027,1775652632970,-500.0,0.00010396,2]
[420074028,1775652632983,-500.0,0.00010396,2]
[420074029,1775652632993,-500.0,0.00010396,2]
[420074030,1775652633004,-500.0,0.00010396,2]
[420074031,1775652633015,-500.0,0.00010396,2]
[420074032,1775652633025,-500.0,0.00010396,2]
[420074033,1775652633036,-500.0,0.00010396,2]
[420074034,1775652633047,-500.0,0.00010396,2]
[420074035,1775652633058,-500.0,0.00010396,2]
[420074036,1775652633070,-500.0,0.00010396,2]
[420074037,1775652633080,-500.0,0.00010396,2]
[420074038,1775652633091,-500.0,0.00010396,2]
[420074039,1775652633101,-500.0,0.00010396,2]
[420074040,1775652633111,-500.0,0.00010396,2]
[420074041,1775652633122,-500.0,0.00010396,2]
[420074042,1775652633133,-500.0,0.00010396,2]
[420074043,1775652633143,-500.0,0.00010396,2]
[420074044,1775652633152,-500.0,0.00010396,2]
[420074045,1775652633162,-500.0,0.00010396,2]
[420074046,1775652633172,-504.494529,0.00010396,2]
[420074047,1775652633182,-150.0,0.00010396,2]
[420074048,1775652633192,-2423.12483454,0.00010397,2]
[420074049,1775652633209,-10967.51808471,0.00010397,2]
[420074053,1775652638619,-7059.02954291,0.00010397,2]
[420074054,1775652638631,-113814.69731687,0.00010397,2]
[420074055,1775652638735,-29128.78858851,0.00010397,2]
[420074056,1775652638748,-1190223.66573814,0.00010397,2]
[420074057,1775652638761,-35937.50000001,0.00010397,2]
[420074077,1775652641573,-6720.0,0.00010397,2]
[420074078,1775652641587,-6732.89877854,0.00010397,2]
[420074079,1775652641599,-1851.21203586,0.00010397,2]
[420074080,1775652641732,-3350.0,0.00010397,2]
[420074081,1775652641744,-333.885,0.00010397,2]
[420074082,1775652641757,-91457.68007991,0.00010397,2]
[420074083,1775652641767,-300.0,0.000104,2]
[420074084,1775652641777,-4706.7984,0.000104,2]
[420074085,1775652641786,-2500.0,0.000104,2]
[420074086,1775652641797,-500.0,0.00010473,2]
[420074087,1775652641807,-151.0,0.00010494,2]
[420074088,1775652641816,-151.0,0.00010494,2]
[420074089,1775652641826,-151.0,0.00010494,2]
[420074090,1775652641836,-151.0,0.00010494,2]
[420074091,1775652641846,-500.0,0.00010494,2]
[420074092,1775652641856,-151.0,0.00010494,2]
[420074093,1775652641866,-151.0,0.00010494,2]
[420074094,1775652641876,-151.0,0.00010494,2]
[420074095,1775652641886,-151.0,0.00010494,2]
[420074096,1775652641896,-151.0,0.00010494,2]
[420074097,1775652641906,-151.0,0.00010494,2]
[420074098,1775652641916,-151.0,0.00010494,2]
[420074099,1775652641925,-151.0,0.00010494,2]
[420074100,1775652641936,-151.0,0.00010494,2]
[420074101,1775652641945,-151.0,0.00010494,2]
[420074102,1775652641955,-151.0,0.00010494,2]
[420074103,1775652641965,-151.0,0.00010494,2]
[420074104,1775652641975,-500.0,0.00010494,2]
[420074105,1775652641985,-1156.41848618,0.00010494,2]
[420074106,1775652641996,-151.0,0.00010494,2]
[420074107,1775652642007,-1771.04284645,0.00010494,2]
[420074108,1775652642017,-152.1622225,0.00010494,2]
[420074109,1775652642027,-595.37,0.00010497,2]
[420074110,1775652642037,-4149.537,0.00010497,2]
[420074111,1775652642048,-255.004,0.00010497,2]
[420074112,1775652642058,-299.99,0.00010497,2]
[420074113,1775652642068,-999.99,0.00010497,2]
[420074114,1775652642078,-9999.99,0.00010497,2]
[420074115,1775652642486,-150.99,0.00010497,2]
[420074116,1775652642497,-9999.99,0.00010497,2]
[420074117,1775652642507,-9999.99,0.00010497,2]
[420074118,1775652642518,-3129.02,0.00010497,2]
[420074119,1775652642528,-499.99,0.00010497,2]
[420074120,1775652642538,-5672.39,0.00010497,2]
[420074121,1775652642547,-13987.77,0.00010497,2]
[420074122,1775652642557,-150.99,0.00010497,2]
[420074123,1775652642567,-9999.99,0.00010497,2]
[420074124,1775652642577,-500.0,0.00010498,2]
[420074125,1775652642586,-500.0,0.00010498,2]
[420074126,1775652642597,-500.0,0.00010498,2]
[420074127,1775652642606,-500.0,0.00010498,2]
[420074128,1775652642617,-500.0,0.00010498,2]
[420074129,1775652642626,-500.0,0.00010498,2]
[420074130,1775652642636,-500.0,0.00010498,2]
[420074131,1775652642646,-500.0,0.00010498,2]
[420074132,1775652642656,-500.0,0.00010498,2]
[420074133,1775652642665,-500.0,0.00010498,2]
[420074134,1775652642675,-500.0,0.00010498,2]
[420074135,1775652642685,-500.0,0.00010498,2]
[420074136,1775652642695,-500.0,0.00010498,2]
[420074137,1775652642705,-500.0,0.00010498,2]
[420074138,1775652642715,-500.0,0.00010498,2]
[420074139,1775652642725,-500.0,0.00010498,2]
[420074140,1775652642735,-500.0,0.00010498,2]
[420074141,1775652642745,-500.0,0.00010498,2]
[420074142,1775652642754,-500.0,0.00010498,2]
[420074143,1775652642764,-500.0,0.00010498,2]
[420074144,1775652642774,-500.0,0.00010498,2]
[420074145,1775652642784,-500.0,0.00010498,2]
[420074146,1775652642794,-500.0,0.00010498,2]
[420074147,1775652642805,-500.0,0.00010498,2]
[420074148,1775652642815,-500.0,0.00010498,2]
[420074149,1775652642825,-500.0,0.00010498,2]
[420074150,1775652642835,-500.0,0.00010498,2]
[420074151,1775652642845,-500.0,0.00010498,2]
[420074152,1775652642855,-500.0,0.00010498,2]
[420074153,1775652642865,-500.0,0.00010498,2]
[420074154,1775652642875,-500.0,0.00010498,2]
[420074155,1775652642885,-500.0,0.00010498,2]
[420074157,1775652642895,-500.0,0.00010498,2]
[420074159,1775652642906,-500.0,0.00010498,2]
[420074162,1775652642917,-500.0,0.00010498,2]
[420074166,1775652642926,-500.0,0.00010498,2]
[420074168,1775652642936,-500.0,0.00010498,2]
[420074169,1775652642946,-500.0,0.00010498,2]
[420074171,1775652642956,-500.0,0.00010498,2]
[420074173,1775652642967,-500.0,0.00010498,2]
[420074175,1775652642977,-500.0,0.00010498,2]
[420074176,1775652642987,-500.0,0.00010498,2]
[420074177,1775652642997,-500.0,0.00010498,2]
[420074178,1775652643008,-500.0,0.00010498,2]
[420074179,1775652643019,-500.0,0.00010498,2]
[420074180,1775652643030,-500.0,0.00010498,2]
[420074181,1775652643040,-500.0,0.00010498,2]
[420074182,1775652643051,-500.0,0.00010498,2]
[420074183,1775652643062,-500.0,0.00010498,2]